Cogmind - Beta 14 @@@ ROGUE MODE // 2025.01.16 @ 02:14:43 Player: Nikolayag Result: Destroyed by G-34 Mercenary with Small Laser Performance ------------- Evolutions (0) 0 Regions Visited (1) 200 Robots Destroyed (17) 85 Value Destroyed (440) 440 Prototype IDs (0) 0 Alien Tech Used (0) 0 Bonus (0) 0 TOTAL SCORE: 725 Bonus ------- None Cogmind --------- Core Integrity 0/250 Matter 283/300 Energy 98/100 System Corruption 0% Temperature Cool (6) Movement Treading (480) Ox4 Location -10/Materials Parts ------- > --- POWER (1) -------- (None) > --- PROPULSION (2) --- Light Treads > --- UTILITY (2) ------ Improved Heat Sink Huge Storage Unit > --- WEAPON (2) ------- Light Assault Rifle Light Assault Rifle > --- INVENTORY (25) --- Ion Engine Light Treads Large Storage Unit Medium Matter Pod (80) EM Pulse Gun Medium Laser Medium Laser Small Laser Particle Gun Light Assault Rifle Peak State ------------ > --- POWER ------------ Ion Engine > --- PROPULSION ------- Wheel Compact Wheel > --- UTILITY ---------- Improved Heat Sink Huge Storage Unit > --- WEAPON ----------- Assault Rifle Light Assault Rifle > --- INVENTORY -------- Ion Engine Light Treads Light Treads EM Pulse Gun Medium Laser Medium Laser Particle Gun Light Assault Rifle Light Assault Rifle [Rating: 10] Favorites ----------- Power Ion Engine Engine Ion Engine Propulsion Light Treads Treads Light Treads Wheel Compact Wheel Utility Improved Heat Sink Device Improved Heat Sink Storage Small Storage Unit Weapon Light Assault Rifle Energy Gun Medium Laser Ballistic Gun Light Assault Rifle Build | -11 -10 ------- Run | Yrd Mat Slots Evolved . | . . Power . | . . Propulsion . | . . Utility . | . . Weapon . | . . Parts Attached 18 | 6 12 Power 1 | 1 . Engine 1 | 1 . Core . | . . Reactor . | . . Propulsion 10 | 2 8 Treads 6 | 2 4 Leg . | . . Wheel 4 | . 4 Hover . | . . Flight . | . . Utility 3 | 1 2 Device 1 | . 1 Storage 2 | 1 1 Processor . | . . Hackware . | . . Protection . | . . Artifact . | . . Weapon 4 | 2 2 Energy Gun 1 | 1 . Energy Cannon . | . . Ballistic Gun 3 | 1 2 Ballistic Cannon . | . . Launcher . | . . Special Weapon . | . . Impact Weapon . | . . Slashing Weapon . | . . Piercing Weapon . | . . Special Melee Weapon . | . . Unidentified Prototypes . | . . Parts Lost 5 | . 5 Power 1 | . 1 Propulsion 3 | . 3 Utility . | . . Weapon 1 | . 1 Highest Loss Streak 3 | . 3 To Critical Strikes . | . . Average Slot Usage (%) 91 | . 91 Engine 13 | . 13 Treads 10 | . 10 Wheel 15 | . 15 Device 9 | . 9 Storage 14 | . 14 Ballistic Gun 25 | . 25 Peak Build Rating 10 | 5 10 Average Rating 7 | 4 8 On Entrance 2 | . 5 Naked Turns . | . . Heaviest Build 89 | 12 89 Greatest Support 40 | 40 40 Greatest Overweight (x) 8 | . 8 Average Overweight (x) . | . 1 Largest Inventory Capacity 25 | 8 25 Average Capacity 15 | 7 17 Most Carried 13 | 5 13 Average Carried 7 | 2 8 Final Capacity 25 | 8 25 Final Carried 10 | 5 10 Class Distribution -------------------- 100% | Mutant Dominant Class ---------------- Mutant | -10/Materials Resources | -11 -10 ----------- Run | Yrd Mat Matter Collected 594 | 223 371 Remotely . | . . Salvage Created 771 | 86 685 Parts 39 | 1 38 Haulers Intercepted 1 | . 1 Recyclers Shooed 3 | . 3 Parts Field Recycled . | . . Retrieved Matter . | . . Parts Self-Destructed . | . . Prevented . | . . Kills | -11 -10 ------- Run | Yrd Mat Combat Hostiles Destroyed 13 | . 13 Guns 13 | . 13 Classes Destroyed 4 | 1 3 Hauler 1 | . 1 Recycler 3 | 1 2 Swarmer 2 | . 2 Grunt 11 | . 11 Best Kill Streak 7 | 1 7 Combat Bots Only 6 | . 6 Max Kills in Single Turn 2 | 1 2 Gunslinging 1 | . 1 Exploded . | . . Melee . | . . Uniques/NPCs Destroyed . | . . Combat | -11 -10 -------- Run | Yrd Mat Hostile Shots Fired 110 | . 110 Missed 27 | . 27 Damage Taken 979 | . 979 Core 252 | . 252 Absorbed by Shields . | . . Core Remaining (%) 100 | 100 . Volleys Fired 65 | 8 57 Largest 2 | 1 2 Hottest 40 | 20 40 Shots Fired 122 | 8 114 Gun 122 | 8 114 Cannon . | . . Launcher . | . . Special . | . . Kinetic 122 | 8 114 Thermal . | . . Explosive . | . . Electromagnetic . | . . Robot Hit Streak 18 | 5 18 Robot Miss Streak 5 | 2 5 Penetration Max . | . . Secondary Targets 2 | . 2 Max Gunslinging Chain 1 | . 1 Shots Hit Robots 85 | 6 79 Core Hits 38 | 2 36 Critical Kills . | . . Critical Parts Destroyed . | . . Critical Strikes . | . . Melee Attacks . | . . Impact . | . . Slashing . | . . Piercing . | . . Sneak Attacks . | . . Combat Hostiles . | . . Follow-up Attacks . | . . Damage Inflicted 806 | 75 731 Guns 806 | 75 731 Cannons . | . . Explosions . | . . Melee . | . . Ramming . | . . Kinetic 806 | 75 731 Thermal . | . . Explosive . | . . Electromagnetic . | . . Impact . | . . Slashing . | . . Piercing . | . . Highest Corruption . | . . Average Corruption . | . . Corruption Purged . | . . Corruption Blocked . | . . Overload Shots . | . . Overflow Damage . | . . Projectiles . | . . Explosions . | . . Melee . | . . Knockbacks . | . . Impact . | . . Kinetic . | . . Secondary . | . . Self-Inflicted Damage . | . . Shots . | . . Rammed . | . . Targets Rammed . | . . Kicked . | . . Crushed . | . . Highest Temperature 9 | . 9 Average Temperature 7 | . 7 Received Heat Transfer 513 | . 513 Siege Activations . | . . Robots Corrupted . | . . Combat Hostiles . | . . Parts Fried . | . . Impact Corruptions . | . . Robots Melted . | . . Combat Hostiles . | . . Parts Melted . | . . Heat Transferred . | . . Parts Sabotaged . | . . Parts Stolen . | . . Parts Stripped . | . . Power Chain Reactions . | . . Alert | -11 -10 ------- Run | Yrd Mat Peak Influence 330 | 5 330 Initial 3 | . 3 Average 103 | 1 135 Maximum Alert Level 1 | . 1 Low Security (%) 79 | 100 72 Level 1 20 | . 27 Level 2 . | . . Level 3 . | . . Level 4 . | . . Level 5 . | . . High Security . | . . Max Security . | . . Squads Dispatched 3 | . 3 Investigation 1 | . 1 Extermination . | . . Reinforcement 2 | . 2 Assault . | . . Garrison . | . . Intercept . | . . Searches Triggered . | . . Construction Impeded . | . . Haulers Reinforced . | . . Active Scanning Responses . | . . Cargo Convoy Interrupts . | . . Stealth | -11 -10 --------- Run | Yrd Mat Distress Signals 2 | . 2 Communications Jammed . | . . Distress Signals . | . . Times Spotted 23 | . 23 Peak Tracking Total 11 | . 11 Tactical Retreats 1 | . 1 Traps | -11 -10 ------- Run | Yrd Mat Traps Triggered 1 | . 1 Indirectly . | . . Trap Hack Attempts . | . . Triggered . | . . Disarmed . | . . Reprogrammed . | . . Reused . | . . Traps Extracted . | . . Installed . | . . Triggered . | . . Machines | -11 -10 ---------- Run | Yrd Mat Machines Disabled . | . . Max in Single Turn . | . . Machines Repaired . | . . Machines Dismantled . | . . Machines Sabotaged . | . . Overloaded Fab Kills . | . . Hacking | -11 -10 --------- Run | Yrd Mat Machines Accessed 2 | . 2 Terminals 2 | . 2 Fabricators . | . . Repair Stations . | . . Recycling Units . | . . Scanalyzers . | . . Garrison Access . | . . Total Hacks 4 | . 4 Successful 1 | . 1 Failed 3 | . 3 Catastrophic 1 | . 1 Database Lockouts . | . . Manual 4 | . 4 Terminals 4 | . 4 Fabricators . | . . Repair Stations . | . . Recycling Units . | . . Scanalyzers . | . . Garrison Access . | . . Terminal Hacks 1 | . 1 Zone Layout 1 | . 1 Fabricator Hacks . | . . Repair Station Hacks . | . . Recycling Unit Hacks . | . . Scanalyzer . | . . Garrison Access Hacks . | . . Unauthorized Hacks . | . . Terminals . | . . Fabricators . | . . Repair Stations . | . . Recycling Units . | . . Scanalyzers . | . . Garrison Access . | . . Data Cores Recovered . | . . Used . | . . Hacking Detections 2 | . 2 Full Trace Events 1 | . 1 Feedback Events . | . . Feedback Blocked . | . . Robot Schematics Acquired . | . . Robots Built . | . . Authchips . | . . Time . | . . Total Robot Build Rating . | . . Part Schematics Acquired . | . . Parts Built . | . . Authchips . | . . Time . | . . Total Part Build Rating . | . . Parts Repaired . | . . Time . | . . Parts Recycled . | . . Recycled Matter . | . . Retrieved Matter . | . . Retrieved Components . | . . Parts Scanalyzed . | . . Part Schematics Acquired . | . . Parts Damaged . | . . Bothacking | -11 -10 ------------ Run | Yrd Mat Used RIF Installer . | . . Robots Hacked . | . . Non-combat . | . . Combat . | . . Robot Hacks Applied . | . . Relay Couplers Released . | . . Fabnet Peak Effective % . | . . Robots Rewired . | . . Allies Hacked . | . . Hacks Repelled . | . . Allies | -11 -10 -------- Run | Yrd Mat Total Allies . | . . Largest Group . | . . Highest-Rated Group . | . . Highest-Rated Ally . | . . Total Orders . | . . Ally Attacks . | . . Total Damage . | . . Kills . | . . Allies Corrupted . | . . Allies Melted . | . . Intel | -11 -10 ------- Run | Yrd Mat Robot Analysis Total . | . . Derelict Logs Recovered . | . . Drone Launches . | . . Drone Recoveries . | . . Exploration | -11 -10 ------------- Run | Yrd Mat Turns Passed 482 | 116 366 Spaces Moved 196 | 53 143 Core 6 | 6 . Treads 77 | 47 30 Legs . | . . Wheels 113 | . 113 Hover . | . . Flight . | . . Fastest Speed 50 | 50 90 Average Speed 129 | 147 122 Slowest Speed 200 | 160 200 Overloaded Moves . | . . Propulsion Burnouts . | . . Robots Hopped . | . . Cave-ins Triggered . | . . Exploration Rate (%) 19 | 5 34 Regions Visited 1 Branch Regions . Pre-discovered Areas . | . . Known Exits Taken . | . . Unknown Exits Taken 1 | 1 . Scrap Searched . | . . Spaces Dug . | . . Terrain Destroyed . | . . Melee . | . . Projectile . | . . AOE . | . . Terrain Rammed . | . . Walls Destroyed . | . . Machines Disabled . | . . Actions | -11 -10 --------- Run | Yrd Mat Total 319 | 80 239 Wait 25 | 9 16 Move 195 | 52 143 Hop . | . . Pick Up 14 | 4 10 Fast Attach 6 | 6 . Attach 5 | . 5 Detach 1 | 1 . Swap 7 | . 7 Drop 1 | . 1 Fire 65 | 8 57 Melee . | . . Ram . | . . Kick . | . . Crush . | . . Escape Stasis . | . . Rewire . | . . Trap . | . . Miscellaneous . | . . Route ------- -11/Scrapyard -10/Materials (discovered 1 exit: [*Min]) History --------- Turn | Location | Event 42 | -11/Scrapyard | Discovered new exit (range 16) 117 | -11/Scrapyard | Entered Materials 223 | -10/Materials | Discovered new exit (range 18) 315 | -10/Materials | Build established: Mutant 402 | -10/Materials | Core integrity fell below 50% 459 | -10/Materials | Core integrity fell below 20% 483 | -10/Materials | Destroyed by G-34 Mercenary with Small Laser Last Messages --------------- 00436_ Acquired 153 matter. 00437_ K-01 Serf collects debris. 00448_ W-16 Scout sends out distress signal. 00450_ K-01 Serf collects debris. 00453_ M-13 Machinist destroyed. 00453_ K-01 Serf collects debris. 00454_ Acquired 26 matter. 00456_ K-01 Serf collects debris. 00457_ G-34 Mercenary destroyed. 00457_ K-01 Serf collects debris. 00461_ Lgt. Treads destroyed. 00461_ K-01 Serf collects debris. 00474_ Wheel destroyed. 00474_ K-01 Serf collects debris. 00475_ Ion Engine destroyed. 00477_ K-01 Serf collects debris. 00478_ K-01 Serf cleans the Matter Pump. 00478_ K-01 Serf collects debris. 00479_ R-06 Scavenger collects Sml. Laser. 00481_ K-01 Serf collects debris. Map ----- +----------------------------------------------------+ | ?????????????????????????????????????????????????? | | ?????????????????????????????????????????????????? | | ?????????????????????????????????????????????????? | | ?????????????????????????????????????????????????? | | ?????????????????????????????????????????????????? | | ?????????????????????????????????????????????????? | | ?????????????????????????????????????????????????? | | ?????????????????????????????????????????????????? | | ?????????????????????????????????????????????????? | | ?????????????????????????????????????????????????? | | ?????????????????????????????????????????????????? | | ?????????????????????????????????????????????????? | | ?????????????????????????????????????????????????? | | ?????###+##??????????????????????????????????????? | | ?????# ??????????????????????????????????????? | | ?????# "???#??????????????????????????????????? | | ?????# """ #??????????????????????????????????? | | ?????# = """ #??????????????????????????????????? | | ?????# """ #??????????????????????????????????? | | ?????# [ """ #??????????????????????????????????? | | ?????# #??????????????????????????????????? | | ?????# ???????#########???????????????????? | | ??????? ?????????#""!=!""#???????????????????? | | ##??####+##### #= *!" #???????????????????? | | ##### #######u##!k[!!= ##r """ "?????????? | | =% !!!@!= o """ "?????????? | | T k %<* % g ????????? | | uu t = g ????????? | | ##### ### # k ##+########?????????? | | ###???## ##?# #########?? ???????????????? | | ???????# #??#! !#??????????? ??????????????? | | ######## #??##!!!!##???????????? ?????????????? | | #! # #??########?????????????"?????????????? | | # # #?????????????????????????????????????? | | # """ # #?????????????????????????????????????? | | # """ #= ########??????????????????????????????? | | # """ %+! / #??????????????????????????????? | | + =# #"" #??????????????????????????????? | | ######## #"T%= #??????????????????????????????? | | ???????# #""*=! #??????????????????????????????? | | ???????# #!=%!* ###################????????????? | | ???????# + !=*= + == ?????? | | ???????# ############## ###########????????????? | | ???????# #????????????# #??????????????????????? | | ???######+####??????????# #??????????????????????? | | ???# #??????????# #??????????????????????? | | ???# "" #?########?# #??????????????????????? | | ???# "" #?# ### ###????????????????????? | | ???# " #?# # #????????????????????? | | ???# #?# # #####????????????????? | +----------------------------------------------------+ Best States ------------- Heat Dissipation 39 Energy Generation 10 Energy Capacity 250 Matter Stores 298 Matter Capacity 300 Sight Range 16 Terrain Scan Density 10 Evasion (%) 42 Recoil Reduction 2 Item Schematics ----------------- None Robot Schematics ------------------ None Fabricated ------------ Nothing Alien Tech Used ----------------- None Achievements -------------- None Challenges ------------ None Game ------ Seed CompactMiniSpiker Manual? 0 Play Time 00:08:42 Cumulative 357.2 hours Start 2025.01.16 @ 02:07:10 End 2025.01.16 @ 02:14:43 Sessions 2 Manual Loads 0 Difficulty Rogue Special Mode None Game No. 206 Rogue 206 Adventurer 0 Explorer 0 Win Type - Total 12 Types 7/1/0/2/0/1/1/0/0 Lore% 49 Gallery% 75 Achievement% 79 Wizard Run 0 Options --------- Layout 0 ASCII 0 Keyboard 1 Movement Numpad Keybinds 0 Fullscreen 2 Font 18/SmallcapsGlow Map View 76x50 Zoom Use 0% Tactical HUD 1 Map Filters NONE Filters NONE Steam 1 RUN: f730acec-c2ce-47aa-b3fe-25bfb12d5eec